{"text_format":"1","workbook":"xlsx","n_sheets":1,"sheets":["Tutorial"],"not_rendered":{"charts":0,"images":0,"macros":1,"external_links":0,"defined_names":0,"comments":0,"pivot_tables":0},"unopened":[],"bounds":{"document_bytes":16777216,"sheet_cells":100000,"rows_first":2000,"rows_last":500,"rows_between":2000,"halvings":0,"cell_chars":16384,"cell_head_chars":4096},"cells_cut":0,"cells_raw":0,"read":"whole","date_system":"1900"}

{"sheet":"Tutorial","index":0,"n_rows":21,"n_cols":21,"rows_kept":21,"cut":false,"hidden":false,"merged":[[5,5,5,11],[16,10,16,11]]}
[null,null,null,null,null,null,null,null,null,null,null,null,null,null,null,null,null,null,null,"January",2015]
[null,null,null,null,null,null,null,null,null,null,null,null,null,null,null,null,null,null,null,"February",2016]
[null,null,null,null,null,null,null,null,null,null,null,null,null,null,null,null,null,null,null,"March",2017]
[null,null,null,null,null,null,"March",null,null,2023,null,null,null,null,null,null,null,null,null,"April",2018]
[null,null,null,null,null,null,null,null,null,null,null,null,null,null,null,null,null,null,null,"May",2019]
[null,null,null,null,null,{"$f":"DATE(J4,MATCH(G4,T1:T12,0),1)","v":"2023-03-01"},null,null,null,null,null,null,null,null,null,null,null,null,null,"June",2020]
[null,null,null,null,null,null,null,null,null,null,null,null,null,null,null,null,null,null,null,"July",2021]
[null,null,null,null,null,"Saturday","Sunday","Monday","Tuesday","Wednesday","Thursday","Friday",null,null,null,null,null,null,null,"August",2022]
[null,null,null,null,null,{"$f":"IF(TEXT($F$6,\"DDDD\")=F$8,$F$6,\"\")","v":""},{"$f":"IF(F9=\"\",IF(TEXT($F$6,\"DDDD\")=G$8,$F$6,\"\"),IF(F9+1>EOMONTH($F$6,0),\"\",F9+1))","v":""},"","","2023-03-01","2023-03-02","2023-03-03",null,null,null,null,null,null,null,"September",2023]
[null,null,null,null,null,{"$f":"IF(L9+1>EOMONTH($F$6,0),\"\",L9+1)","v":"2023-03-04"},{"$f":"IFERROR(IF(F10+1>EOMONTH($F$6,0),\"\",F10+1),\"\")","v":"2023-03-05"},"2023-03-06","2023-03-07","2023-03-08","2023-03-09","2023-03-10",null,null,null,null,null,null,null,"October",2024]
[null,null,null,null,null,"2023-03-11",{"$f":"IFERROR(IF(F11+1>EOMONTH($F$6,0),\"\",F11+1),\"\")","v":"2023-03-12"},"2023-03-13","2023-03-14","2023-03-15","2023-03-16","2023-03-17",null,null,null,null,null,null,null,"November",2025]
[null,null,null,null,null,"2023-03-18",{"$f":"IFERROR(IF(F12+1>EOMONTH($F$6,0),\"\",F12+1),\"\")","v":"2023-03-19"},"2023-03-20","2023-03-21","2023-03-22","2023-03-23",{"$f":"IFERROR(IF(K12+1>EOMONTH($F$6,0),\"\",K12+1),\"\")","v":"2023-03-24"},null,null,null,null,null,null,null,"December",2026]
[null,null,null,null,null,"2023-03-25",{"$f":"IFERROR(IF(F13+1>EOMONTH($F$6,0),\"\",F13+1),\"\")","v":"2023-03-26"},"2023-03-27","2023-03-28","2023-03-29","2023-03-30","2023-03-31",null,null,null,null,null,null,null,null,2027]
[null,null,null,null,null,{"$f":"IFERROR(IF(L13+1>EOMONTH($F$6,0),\"\",L13+1),\"\")","v":""},{"$f":"IFERROR(IF(F14+1>EOMONTH($F$6,0),\"\",F14+1),\"\")","v":""},"","","","","",null,null,null,null,null,null,null,null,2028]
[null,null,null,null,null,null,null,null,null,null,null,null,null,null,null,null,null,null,null,null,2029]
[null,null,null,null,null,null,null,null,null,null,null,null,null,null,null,null,null,null,null,null,2030]
[null,null,null,null,null,null,null,null,null,"Total Circle",null,null,null,null,null,null,null,null,null,null,2031]
[null,null,null,null,null,null,null,null,null,null,null,null,null,null,null,null,null,null,null,null,2032]
[null,null,null,null,null,null,null,null,null,null,null,null,null,null,null,null,null,null,null,null,2033]
[null,null,null,null,null,null,null,null,null,null,null,null,null,null,null,null,null,null,null,null,2034]
[null,null,null,null,null,null,null,null,null,null,null,null,null,null,null,null,null,null,null,null,2035]